{"text_format":"1","workbook":"xlsx","n_sheets":8,"sheets":["Totale progetto","Impresa 1","Impresa 2","Impresa 3","Impresa 4","Impresa 5","Focus spese di personale","Foglio2"],"not_rendered":{"charts":0,"images":6,"macros":1,"external_links":0,"defined_names":0,"comments":0,"pivot_tables":0},"unopened":[],"bounds":{"document_bytes":16777216,"sheet_cells":100000,"rows_first":2000,"rows_last":500,"rows_between":2000,"halvings":0,"cell_chars":16384,"cell_head_chars":4096},"cells_cut":0,"cells_raw":0,"read":"whole","date_system":"1900"}

{"sheet":"Totale progetto","index":0,"n_rows":22,"n_cols":3,"rows_kept":22,"cut":false,"hidden":false,"merged":[[1,1,3,3]]}
[]
[null,"INNOVAZIONE DELLE FILIERE DI ECONOMIA CIRCOLARE IN LOMBARDIA\nBando 2021\nProspetto delle spese rendicontate - Totale progetto"]
[]
[]
[]
[null,"Nome impresa singola o capofila","………………………………………………………………………………………."]
[null,"Nome progetto","………………………………………………………………………………………."]
[]
[null,"Spesa presentate","Importo (al netto di Iva)"]
[null,"a) Consulenza",{"$f":"'Impresa 1'!G13+'Impresa 2'!G13+'Impresa 3'!G13+'Impresa 4'!G13+'Impresa 5'!G13","v":0}]
[null,"b) Investimenti in attrezzature tecnologiche e programmi informatici",{"$f":"'Impresa 1'!G17+'Impresa 2'!G17+'Impresa 3'!G17+'Impresa 4'!G17+'Impresa 5'!G17","v":0}]
[null,"c) Assistenza e costi di acquisizione delle certificazioni ambientali di processo e di prodotto",{"$f":"'Impresa 1'!G20+'Impresa 2'!G20+'Impresa 3'!G20+'Impresa 4'!G20+'Impresa 5'!G20","v":0}]
[null,"d) Assistenza e costi di acquisizione delle certificazioni tecniche ",{"$f":"'Impresa 1'!G23+'Impresa 2'!G23+'Impresa 3'!G23+'Impresa 4'!G23+'Impresa 5'!G23","v":0}]
[null,"e) Servizi per l’ingegnerizzazione di software/hardware e prodotti relativi al progetto",{"$f":"'Impresa 1'!G26+'Impresa 2'!G26+'Impresa 3'!G26+'Impresa 4'!G26+'Impresa 5'!G26","v":0}]
[null,"f) Tecnologie per l’ingegnerizzazione di software/hardware e prodotti relativi al progetto",{"$f":"'Impresa 1'!G29+'Impresa 2'!G29+'Impresa 3'!G29+'Impresa 4'!G29+'Impresa 5'!G29","v":0}]
[null,"g) Materiali e forniture imputabili al progetto (inclusi prototipi)",{"$f":"'Impresa 1'!G32+'Impresa 2'!G32+'Impresa 3'!G32+'Impresa 4'!G32+'Impresa 5'!G32","v":0}]
[null,"h) Spese per la tutela della proprietà industriale",{"$f":"'Impresa 1'!G35+'Impresa 2'!G35+'Impresa 3'!G35+'Impresa 4'!G35+'Impresa 5'!G35","v":0}]
[null,"i) Spese del personale dell’azienda",{"$f":"'Impresa 1'!G37+'Impresa 2'!G37+'Impresa 3'!G37+'Impresa 4'!G37+'Impresa 5'!G37","v":0}]
[]
[null,"TOTALE SPESE AMMISSIBILI",{"$f":"IF('Impresa 1'!G38+'Impresa 2'!G38+'Impresa 3'!G38+'Impresa 4'!G38+'Impresa 5'!G38>=40000,'Impresa 1'!G38+'Impresa 2'!G38+'Impresa 3'!G38+'Impresa 4'!G38+'Impresa 5'!G38,\"L'importo totale non raggiunge l'investimento minimo\")","v":"L'importo totale non raggiunge l'investimento minimo"}]
[null,"INTENSITA' MASSIMA % DI CONTRIBUTO RICHIESTO",0.4]
[null,"TOTALE CONTRIBUTO RICHIESTO",{"$f":"IF(C20<>\"L'importo totale non raggiunge l'investimento minimo\",IF(('Impresa 1'!G40+'Impresa 2'!G40+'Impresa 3'!G40+'Impresa 4'!G40+'Impresa 5'!G40)>120000,\"ATTENZIONE: Il contributo totale richiesto supera € 120.000\",'Impresa 1'!G40+'Impresa 2'!G40+'Impresa 3'!G40+'Impresa 4'!G40+'Impresa 5'!G40),0)","v":0}]

{"sheet":"Impresa 1","index":1,"n_rows":45,"n_cols":7,"rows_kept":45,"cut":false,"hidden":false,"merged":[[29,1,30,1],[31,1,31,5],[32,1,33,1],[34,1,34,5],[39,1,39,5],[36,1,36,5],[37,2,37,5],[38,1,38,5],[1,1,3,6],[10,1,11,1],[13,1,15,1],[12,1,12,5],[16,1,16,5],[26,1,27,1],[28,1,28,5],[25,1,25,5],[17,1,18,1],[19,1,19,5],[20,1,21,1],[22,1,22,5],[23,1,24,1]]}
[]
[null,"INNOVAZIONE DELLE FILIERE DI ECONOMIA CIRCOLARE IN LOMBARDIA\nBando 2021\nProspetto delle spese rendicontate - Impresa 1"]
[]
[]
[]
[null,"Nome impresa","………………………………………………………………………………….."]
[null,"Codice fiscale impresa","………………………………………………………………………………….."]
[null,"Provincia della sede oggetto dell'intervento","………………………………………………………………………………….."]
[]
[null,"Spese previste","Descrizione spesa","N° e data fattura","Nome fornitore","Codice fiscale fornitore","Importo (al netto di Iva)"]
[null,"a) Consulenza"]
[]
[null,"TOTALE a)",null,null,null,null,{"$f":"SUM(G11:G12)","v":0}]
[null,"b) Investimenti in attrezzature tecnologiche e programmi informatici"]
[]
[]
[null,"TOTALE b)",null,null,null,null,{"$f":"SUM(G14:G16)","v":0}]
[null,"c) Assistenza e costi di acquisizione delle certificazioni ambientali di processo e di prodotto"]
[]
[null,"TOTALE c)",null,null,null,null,{"$f":"SUM(G18:G19)","v":0}]
[null,"d) Assistenza e costi di acquisizione delle certificazioni tecniche "]
[]
[null,"TOTALE d)",null,null,null,null,{"$f":"SUM(G21:G22)","v":0}]
[null,"e) Servizi per l’ingegnerizzazione di software/hardware e prodotti relativi al progetto"]
[]
[null,"TOTALE e)",null,null,null,null,{"$f":"SUM(G24:G25)","v":0}]
[null,"f) Tecnologie per l’ingegnerizzazione di software/hardware e prodotti relativi al progetto"]
[]
[null,"TOTALE f)",null,null,null,null,{"$f":"SUM(G27:G28)","v":0}]
[null,"g) Materiali e forniture imputabili al progetto (inclusi prototipi)"]
[]
[null,"TOTALE g)",null,null,null,null,{"$f":"SUM(G30:G31)","v":0}]
[null,"h) Spese per la tutela della proprietà industriale"]
[]
[null,"TOTALE h)",null,null,null,null,{"$f":"SUM(G33:G34)","v":0}]
[null,"i) Spese del personale dell’azienda (vedi relativo focus)*"]
[null,"TOTALE i)",null,null,null,null,{"$f":"IF(SUM(G36:G36)<=(0.2*(G13+G17+G20+G23+G26+G29+G32+G35)),SUM(G36:G36),0.2*(G13+G17+G20+G23+G26+G29+G32+G35))","v":0}]
[null,null,"TOTALE SPESE AMMISSIBILI",null,null,null,{"$f":"G13+G17+G20+G23+G26+G29+G32+G35+G37","v":0}]
[null,"INTENSITA' MASSIMA % DI CONTRIBUTO RICHIESTO**",null,null,null,null,{"$f":"IF((G17+G23+G29+G32+G35)>=(0.4*(G13+G17+G20+G23+G26+G29+G32+G35+G37)),IF(G40>0.4*G38,\"Attenzione: il contributo richiesto è superiore al 40% delle spese ammissibili\",40%),\"Ripartizione delle spese non ammissibile\")","v":0.4}]
[null,"CONTRIBUTO RICHIESTO***",null,null,null,null,0]
[]
[null,"LEGENDA"]
[null,"* Nel caso l'utente inserisca una cifra superiore al 20% delle altre voci di spesa, il totale i) viene rimodulato dal sistema. Si ricorda che il 20% è riconosciuto solo se viene assunto nuovo personale, altrimenti non è possibile andare oltre il 10%"]
[null,"** Viene effettuato un controllo che la somma delle voci di spesa inserite b), d), f), g) e h) sia almeno pari al 40% del totale delle spese ammissibili"]
[null,"*** Inserire manualmente l'importo del contributo richiesto e verificare di avere almeno raggiunto l'investimento minimo previsto dal progetto nel foglio \"Totale progetto\""]

{"sheet":"Impresa 2","index":2,"n_rows":45,"n_cols":7,"rows_kept":45,"cut":false,"hidden":false,"merged":[[26,1,27,1],[1,1,3,6],[10,1,11,1],[12,1,12,5],[13,1,15,1],[16,1,16,5],[17,1,18,1],[19,1,19,5],[20,1,21,1],[22,1,22,5],[23,1,24,1],[25,1,25,5],[36,1,36,5],[37,2,37,5],[38,1,38,5],[39,1,39,5],[28,1,28,5],[29,1,30,1],[31,1,31,5],[32,1,33,1],[34,1,34,5]]}
[]
[null,"INNOVAZIONE DELLE FILIERE DI ECONOMIA CIRCOLARE IN LOMBARDIA\nBando 2021\nProspetto delle spese rendicontate - Impresa 2"]
[]
[]
[]
[null,"Nome impresa","………………………………………………………………………………….."]
[null,"Codice fiscale impresa","………………………………………………………………………………….."]
[null,"Provincia della sede oggetto dell'intervento","………………………………………………………………………………….."]
[]
[null,"Spese previste","Descrizione spesa","N° e data fattura","Nome fornitore","Codice fiscale fornitore","Importo (al netto di Iva)"]
[null,"a) Consulenza"]
[]
[null,"TOTALE a)",null,null,null,null,{"$f":"SUM(G11:G12)","v":0}]
[null,"b) Investimenti in attrezzature tecnologiche e programmi informatici"]
[]
[]
[null,"TOTALE b)",null,null,null,null,{"$f":"SUM(G14:G16)","v":0}]
[null,"c) Assistenza e costi di acquisizione delle certificazioni ambientali di processo e di prodotto"]
[]
[null,"TOTALE c)",null,null,null,null,{"$f":"SUM(G18:G19)","v":0}]
[null,"d) Assistenza e costi di acquisizione delle certificazioni tecniche "]
[]
[null,"TOTALE d)",null,null,null,null,{"$f":"SUM(G21:G22)","v":0}]
[null,"e) Servizi per l’ingegnerizzazione di software/hardware e prodotti relativi al progetto"]
[]
[null,"TOTALE e)",null,null,null,null,{"$f":"SUM(G24:G25)","v":0}]
[null,"f) Tecnologie per l’ingegnerizzazione di software/hardware e prodotti relativi al progetto"]
[]
[null,"TOTALE f)",null,null,null,null,{"$f":"SUM(G27:G28)","v":0}]
[null,"g) Materiali e forniture imputabili al progetto (inclusi prototipi)"]
[]
[null,"TOTALE g)",null,null,null,null,{"$f":"SUM(G30:G31)","v":0}]
[null,"h) Spese per la tutela della proprietà industriale"]
[]
[null,"TOTALE h)",null,null,null,null,{"$f":"SUM(G33:G34)","v":0}]
[null,"i) Spese del personale dell’azienda (vedi relativo focus)*"]
[null,"TOTALE i)",null,null,null,null,{"$f":"IF(SUM(G36:G36)<=(0.2*(G13+G17+G20+G23+G26+G29+G32+G35)),SUM(G36:G36),0.2*(G13+G17+G20+G23+G26+G29+G32+G35))","v":0}]
[null,null,"TOTALE SPESE AMMISSIBILI",null,null,null,{"$f":"G13+G17+G20+G23+G26+G29+G32+G35+G37","v":0}]
[null,"INTENSITA' MASSIMA % DI CONTRIBUTO RICHIESTO**",null,null,null,null,{"$f":"IF((G17+G23+G29+G32+G35)>=(0.4*(G13+G17+G20+G23+G26+G29+G32+G35+G37)),IF(G40>0.4*G38,\"Attenzione: il contributo richiesto è superiore al 40% delle spese ammissibili\",40%),\"Ripartizione delle spese non ammissibile\")","v":0.4}]
[null,"CONTRIBUTO RICHIESTO***",null,null,null,null,0]
[]
[null,"LEGENDA"]
[null,"* Nel caso l'utente inserisca una cifra superiore al 20% delle altre voci di spesa, il totale i) viene rimodulato dal sistema. Si ricorda che il 20% è riconosciuto solo se viene assunto nuovo personale, altrimenti non è possibile andare oltre il 10%"]
[null,"** Viene effettuato un controllo che la somma delle voci di spesa inserite b), d), f), g) e h) sia almeno pari al 40% del totale delle spese ammissibili"]
[null,"*** Inserire manualmente l'importo del contributo richiesto e verificare di avere almeno raggiunto l'investimento minimo previsto dal progetto nel foglio \"Totale progetto\""]

{"sheet":"Impresa 3","index":3,"n_rows":45,"n_cols":7,"rows_kept":45,"cut":false,"hidden":false,"merged":[[26,1,27,1],[1,1,3,6],[10,1,11,1],[12,1,12,5],[13,1,15,1],[16,1,16,5],[17,1,18,1],[19,1,19,5],[20,1,21,1],[22,1,22,5],[23,1,24,1],[25,1,25,5],[36,1,36,5],[37,2,37,5],[38,1,38,5],[39,1,39,5],[28,1,28,5],[29,1,30,1],[31,1,31,5],[32,1,33,1],[34,1,34,5]]}
[]
[null,"INNOVAZIONE DELLE FILIERE DI ECONOMIA CIRCOLARE IN LOMBARDIA\nBando 2021\nProspetto delle spese rendicontate - Impresa 3"]
[]
[]
[]
[null,"Nome impresa","………………………………………………………………………………….."]
[null,"Codice fiscale impresa","………………………………………………………………………………….."]
[null,"Provincia della sede oggetto dell'intervento","………………………………………………………………………………….."]
[]
[null,"Spese previste","Descrizione spesa","N° e data fattura","Nome fornitore","Codice fiscale fornitore","Importo (al netto di Iva)"]
[null,"a) Consulenza"]
[]
[null,"TOTALE a)",null,null,null,null,{"$f":"SUM(G11:G12)","v":0}]
[null,"b) Investimenti in attrezzature tecnologiche e programmi informatici"]
[]
[]
[null,"TOTALE b)",null,null,null,null,{"$f":"SUM(G14:G16)","v":0}]
[null,"c) Assistenza e costi di acquisizione delle certificazioni ambientali di processo e di prodotto"]
[]
[null,"TOTALE c)",null,null,null,null,{"$f":"SUM(G18:G19)","v":0}]
[null,"d) Assistenza e costi di acquisizione delle certificazioni tecniche "]
[]
[null,"TOTALE d)",null,null,null,null,{"$f":"SUM(G21:G22)","v":0}]
[null,"e) Servizi per l’ingegnerizzazione di software/hardware e prodotti relativi al progetto"]
[]
[null,"TOTALE e)",null,null,null,null,{"$f":"SUM(G24:G25)","v":0}]
[null,"f) Tecnologie per l’ingegnerizzazione di software/hardware e prodotti relativi al progetto"]
[]
[null,"TOTALE f)",null,null,null,null,{"$f":"SUM(G27:G28)","v":0}]
[null,"g) Materiali e forniture imputabili al progetto (inclusi prototipi)"]
[]
[null,"TOTALE g)",null,null,null,null,{"$f":"SUM(G30:G31)","v":0}]
[null,"h) Spese per la tutela della proprietà industriale"]
[]
[null,"TOTALE h)",null,null,null,null,{"$f":"SUM(G33:G34)","v":0}]
[null,"i) Spese del personale dell’azienda (vedi relativo focus)*"]
[null,"TOTALE i)",null,null,null,null,{"$f":"IF(SUM(G36:G36)<=(0.2*(G13+G17+G20+G23+G26+G29+G32+G35)),SUM(G36:G36),0.2*(G13+G17+G20+G23+G26+G29+G32+G35))","v":0}]
[null,null,"TOTALE SPESE AMMISSIBILI",null,null,null,{"$f":"G13+G17+G20+G23+G26+G29+G32+G35+G37","v":0}]
[null,"INTENSITA' MASSIMA % DI CONTRIBUTO RICHIESTO**",null,null,null,null,{"$f":"IF((G17+G23+G29+G32+G35)>=(0.4*(G13+G17+G20+G23+G26+G29+G32+G35+G37)),IF(G40>0.4*G38,\"Attenzione: il contributo richiesto è superiore al 40% delle spese ammissibili\",40%),\"Ripartizione delle spese non ammissibile\")","v":0.4}]
[null,"CONTRIBUTO RICHIESTO***",null,null,null,null,0]
[]
[null,"LEGENDA"]
[null,"* Nel caso l'utente inserisca una cifra superiore al 20% delle altre voci di spesa, il totale i) viene rimodulato dal sistema. Si ricorda che il 20% è riconosciuto solo se viene assunto nuovo personale, altrimenti non è possibile andare oltre il 10%"]
[null,"** Viene effettuato un controllo che la somma delle voci di spesa inserite b), d), f), g) e h) sia almeno pari al 40% del totale delle spese ammissibili"]
[null,"*** Inserire manualmente l'importo del contributo richiesto e verificare di avere almeno raggiunto l'investimento minimo previsto dal progetto nel foglio \"Totale progetto\""]

{"sheet":"Impresa 4","index":4,"n_rows":45,"n_cols":7,"rows_kept":45,"cut":false,"hidden":false,"merged":[[26,1,27,1],[1,1,3,6],[10,1,11,1],[12,1,12,5],[13,1,15,1],[16,1,16,5],[17,1,18,1],[19,1,19,5],[20,1,21,1],[22,1,22,5],[23,1,24,1],[25,1,25,5],[36,1,36,5],[37,2,37,5],[38,1,38,5],[39,1,39,5],[28,1,28,5],[29,1,30,1],[31,1,31,5],[32,1,33,1],[34,1,34,5]]}
[]
[null,"INNOVAZIONE DELLE FILIERE DI ECONOMIA CIRCOLARE IN LOMBARDIA\nBando 2021\nProspetto delle spese rendicontate - Impresa 4"]
[]
[]
[]
[null,"Nome impresa","………………………………………………………………………………….."]
[null,"Codice fiscale impresa","………………………………………………………………………………….."]
[null,"Provincia della sede oggetto dell'intervento","………………………………………………………………………………….."]
[]
[null,"Spese previste","Descrizione spesa","N° e data fattura","Nome fornitore","Codice fiscale fornitore","Importo (al netto di Iva)"]
[null,"a) Consulenza"]
[]
[null,"TOTALE a)",null,null,null,null,{"$f":"SUM(G11:G12)","v":0}]
[null,"b) Investimenti in attrezzature tecnologiche e programmi informatici"]
[]
[]
[null,"TOTALE b)",null,null,null,null,{"$f":"SUM(G14:G16)","v":0}]
[null,"c) Assistenza e costi di acquisizione delle certificazioni ambientali di processo e di prodotto"]
[]
[null,"TOTALE c)",null,null,null,null,{"$f":"SUM(G18:G19)","v":0}]
[null,"d) Assistenza e costi di acquisizione delle certificazioni tecniche "]
[]
[null,"TOTALE d)",null,null,null,null,{"$f":"SUM(G21:G22)","v":0}]
[null,"e) Servizi per l’ingegnerizzazione di software/hardware e prodotti relativi al progetto"]
[]
[null,"TOTALE e)",null,null,null,null,{"$f":"SUM(G24:G25)","v":0}]
[null,"f) Tecnologie per l’ingegnerizzazione di software/hardware e prodotti relativi al progetto"]
[]
[null,"TOTALE f)",null,null,null,null,{"$f":"SUM(G27:G28)","v":0}]
[null,"g) Materiali e forniture imputabili al progetto (inclusi prototipi)"]
[]
[null,"TOTALE g)",null,null,null,null,{"$f":"SUM(G30:G31)","v":0}]
[null,"h) Spese per la tutela della proprietà industriale"]
[]
[null,"TOTALE h)",null,null,null,null,{"$f":"SUM(G33:G34)","v":0}]
[null,"i) Spese del personale dell’azienda (vedi relativo focus)*"]
[null,"TOTALE i)",null,null,null,null,{"$f":"IF(SUM(G36:G36)<=(0.2*(G13+G17+G20+G23+G26+G29+G32+G35)),SUM(G36:G36),0.2*(G13+G17+G20+G23+G26+G29+G32+G35))","v":0}]
[null,null,"TOTALE SPESE AMMISSIBILI",null,null,null,{"$f":"G13+G17+G20+G23+G26+G29+G32+G35+G37","v":0}]
[null,"INTENSITA' MASSIMA % DI CONTRIBUTO RICHIESTO**",null,null,null,null,{"$f":"IF((G17+G23+G29+G32+G35)>=(0.4*(G13+G17+G20+G23+G26+G29+G32+G35+G37)),IF(G40>0.4*G38,\"Attenzione: il contributo richiesto è superiore al 40% delle spese ammissibili\",40%),\"Ripartizione delle spese non ammissibile\")","v":0.4}]
[null,"CONTRIBUTO RICHIESTO***",null,null,null,null,0]
[]
[null,"LEGENDA"]
[null,"* Nel caso l'utente inserisca una cifra superiore al 20% delle altre voci di spesa, il totale i) viene rimodulato dal sistema. Si ricorda che il 20% è riconosciuto solo se viene assunto nuovo personale, altrimenti non è possibile andare oltre il 10%"]
[null,"** Viene effettuato un controllo che la somma delle voci di spesa inserite b), d), f), g) e h) sia almeno pari al 40% del totale delle spese ammissibili"]
[null,"*** Inserire manualmente l'importo del contributo richiesto e verificare di avere almeno raggiunto l'investimento minimo previsto dal progetto nel foglio \"Totale progetto\""]

{"sheet":"Impresa 5","index":5,"n_rows":45,"n_cols":7,"rows_kept":45,"cut":false,"hidden":false,"merged":[[26,1,27,1],[1,1,3,6],[10,1,11,1],[12,1,12,5],[13,1,15,1],[16,1,16,5],[17,1,18,1],[19,1,19,5],[20,1,21,1],[22,1,22,5],[23,1,24,1],[25,1,25,5],[36,1,36,5],[37,2,37,5],[38,1,38,5],[39,1,39,5],[28,1,28,5],[29,1,30,1],[31,1,31,5],[32,1,33,1],[34,1,34,5]]}
[]
[null,"INNOVAZIONE DELLE FILIERE DI ECONOMIA CIRCOLARE IN LOMBARDIA\nBando 2021\nProspetto delle spese rendicontate - Impresa 5"]
[]
[]
[]
[null,"Nome impresa","………………………………………………………………………………….."]
[null,"Codice fiscale impresa","………………………………………………………………………………….."]
[null,"Provincia della sede oggetto dell'intervento","………………………………………………………………………………….."]
[]
[null,"Spese previste","Descrizione spesa","N° e data fattura","Nome fornitore","Codice fiscale fornitore","Importo (al netto di Iva)"]
[null,"a) Consulenza"]
[]
[null,"TOTALE a)",null,null,null,null,{"$f":"SUM(G11:G12)","v":0}]
[null,"b) Investimenti in attrezzature tecnologiche e programmi informatici"]
[]
[]
[null,"TOTALE b)",null,null,null,null,{"$f":"SUM(G14:G16)","v":0}]
[null,"c) Assistenza e costi di acquisizione delle certificazioni ambientali di processo e di prodotto"]
[]
[null,"TOTALE c)",null,null,null,null,{"$f":"SUM(G18:G19)","v":0}]
[null,"d) Assistenza e costi di acquisizione delle certificazioni tecniche "]
[]
[null,"TOTALE d)",null,null,null,null,{"$f":"SUM(G21:G22)","v":0}]
[null,"e) Servizi per l’ingegnerizzazione di software/hardware e prodotti relativi al progetto"]
[]
[null,"TOTALE e)",null,null,null,null,{"$f":"SUM(G24:G25)","v":0}]
[null,"f) Tecnologie per l’ingegnerizzazione di software/hardware e prodotti relativi al progetto"]
[]
[null,"TOTALE f)",null,null,null,null,{"$f":"SUM(G27:G28)","v":0}]
[null,"g) Materiali e forniture imputabili al progetto (inclusi prototipi)"]
[]
[null,"TOTALE g)",null,null,null,null,{"$f":"SUM(G30:G31)","v":0}]
[null,"h) Spese per la tutela della proprietà industriale"]
[]
[null,"TOTALE h)",null,null,null,null,{"$f":"SUM(G33:G34)","v":0}]
[null,"i) Spese del personale dell’azienda (vedi relativo focus)*"]
[null,"TOTALE i)",null,null,null,null,{"$f":"IF(SUM(G36:G36)<=(0.2*(G13+G17+G20+G23+G26+G29+G32+G35)),SUM(G36:G36),0.2*(G13+G17+G20+G23+G26+G29+G32+G35))","v":0}]
[null,null,"TOTALE SPESE AMMISSIBILI",null,null,null,{"$f":"G13+G17+G20+G23+G26+G29+G32+G35+G37","v":0}]
[null,"INTENSITA' MASSIMA % DI CONTRIBUTO RICHIESTO**",null,null,null,null,{"$f":"IF((G17+G23+G29+G32+G35)>=(0.4*(G13+G17+G20+G23+G26+G29+G32+G35+G37)),IF(G40>0.4*G38,\"Attenzione: il contributo richiesto è superiore al 40% delle spese ammissibili\",40%),\"Ripartizione delle spese non ammissibile\")","v":0.4}]
[null,"CONTRIBUTO RICHIESTO***",null,null,null,null,0]
[]
[null,"LEGENDA"]
[null,"* Nel caso l'utente inserisca una cifra superiore al 20% delle altre voci di spesa, il totale i) viene rimodulato dal sistema. Si ricorda che il 20% è riconosciuto solo se viene assunto nuovo personale, altrimenti non è possibile andare oltre il 10%"]
[null,"** Viene effettuato un controllo che la somma delle voci di spesa inserite b), d), f), g) e h) sia almeno pari al 40% del totale delle spese ammissibili"]
[null,"*** Inserire manualmente l'importo del contributo richiesto e verificare di avere almeno raggiunto l'investimento minimo previsto dal progetto nel foglio \"Totale progetto\""]

{"sheet":"Focus spese di personale","index":6,"n_rows":31,"n_cols":15,"rows_kept":31,"cut":false,"hidden":false,"merged":[[1,1,3,12],[6,14,17,22]]}
[]
[null,"         INNOVAZIONE DELLE FILIERE DI ECONOMIA CIRCOLARE IN LOMBARDIA\n         Bando 2021\n         Focus rendicontazione spese di personale "]
[]
[]
[]
[]
[null,"Dipendente (nome e cognome)","Data nuova assunzione (solo se lavoratore neo-assunto)","Nome impresa","Descrizione dell'attività svolta nel progetto","Mese","Anno","Retribuzione mensile lorda (RML)","Retribuzione differita (DIF)","Oneri sociali (OS)","Giorni effettivamente lavorabili nel mese (giorlav)","Giorni dedicati al progetto","Costo totale del mese",null,"Istruzioni spese personale\nÈ ammesso il costo del personale dipendente solo se specificatamente dedicato al progetto. Il calcolo del costo giornaliero per ogni mese dedicato al progetto avviene tramite il metodo di calcolo del costo eleggibile: \n[(RML+DIF+OS) / giorlav]\nRML= retribuzione mensile lorda, comprensiva della parte degli oneri previdenziali e ritenute fiscali a carico del lavoratore; \nDIF= retribuzione differita (rateo TFR, 13ma, 14ma); OS= oneri sociali e fiscali a carico del Beneficiario non compresi in busta paga (ovvero non a carico del dipendente);\ngiorlav= giorni effettivamente lavorabili nel mese di riferimento (al lordo di ferie/malattie).\nNel presente modulo inserire il dettaglio relativo al personale dipendente impiegato compilando i campi richiesti per ciascun mese di progetto e ciascun dipendente impiegato. Nei singoli \"prospetti spese\" inserire il totale del costo dei dipendenti ricavato dall'ultima colonna (la quale viene calcolata in automatico). E' eventualmente possibile aggiungere altre righe cliccando sul tasto qui di seguito."]
[null,null,null,null,null,null,null,null,null,null,null,null,{"$f":"IF(Tabella1[[#This Row],[Colonna11]]<=Tabella1[[#This Row],[Colonna10]],IF(K8<>\"\",((H8+I8+J8)/K8)*L8,\"\"),\"Errore giorni dedicati al progetto\")","v":""}]
[null,null,null,null,null,null,null,null,null,null,null,null,{"$f":"IF(Tabella1[[#This Row],[Colonna11]]<=Tabella1[[#This Row],[Colonna10]],IF(K9<>\"\",((H9+I9+J9)/K9)*L9,\"\"),\"Errore giorni dedicati al progetto\")","v":""}]
[null,null,null,null,null,null,null,null,null,null,null,null,{"$f":"IF(Tabella1[[#This Row],[Colonna11]]<=Tabella1[[#This Row],[Colonna10]],IF(K10<>\"\",((H10+I10+J10)/K10)*L10,\"\"),\"Errore giorni dedicati al progetto\")","v":""}]
[null,null,null,null,null,null,null,null,null,null,null,null,{"$f":"IF(Tabella1[[#This Row],[Colonna11]]<=Tabella1[[#This Row],[Colonna10]],IF(K11<>\"\",((H11+I11+J11)/K11)*L11,\"\"),\"Errore giorni dedicati al progetto\")","v":""}]
[null,null,null,null,null,null,null,null,null,null,null,null,{"$f":"IF(Tabella1[[#This Row],[Colonna11]]<=Tabella1[[#This Row],[Colonna10]],IF(K12<>\"\",((H12+I12+J12)/K12)*L12,\"\"),\"Errore giorni dedicati al progetto\")","v":""}]
[null,null,null,null,null,null,null,null,null,null,null,null,{"$f":"IF(Tabella1[[#This Row],[Colonna11]]<=Tabella1[[#This Row],[Colonna10]],IF(K13<>\"\",((H13+I13+J13)/K13)*L13,\"\"),\"Errore giorni dedicati al progetto\")","v":""}]
[null,null,null,null,null,null,null,null,null,null,null,null,{"$f":"IF(Tabella1[[#This Row],[Colonna11]]<=Tabella1[[#This Row],[Colonna10]],IF(K14<>\"\",((H14+I14+J14)/K14)*L14,\"\"),\"Errore giorni dedicati al progetto\")","v":""}]
[null,null,null,null,null,null,null,null,null,null,null,null,{"$f":"IF(Tabella1[[#This Row],[Colonna11]]<=Tabella1[[#This Row],[Colonna10]],IF(K15<>\"\",((H15+I15+J15)/K15)*L15,\"\"),\"Errore giorni dedicati al progetto\")","v":""}]
[null,null,null,null,null,null,null,null,null,null,null,null,{"$f":"IF(Tabella1[[#This Row],[Colonna11]]<=Tabella1[[#This Row],[Colonna10]],IF(K16<>\"\",((H16+I16+J16)/K16)*L16,\"\"),\"Errore giorni dedicati al progetto\")","v":""}]
[null,null,null,null,null,null,null,null,null,null,null,null,{"$f":"IF(Tabella1[[#This Row],[Colonna11]]<=Tabella1[[#This Row],[Colonna10]],IF(K17<>\"\",((H17+I17+J17)/K17)*L17,\"\"),\"Errore giorni dedicati al progetto\")","v":""}]
[null,null,null,null,null,null,null,null,null,null,null,null,{"$f":"IF(Tabella1[[#This Row],[Colonna11]]<=Tabella1[[#This Row],[Colonna10]],IF(K18<>\"\",((H18+I18+J18)/K18)*L18,\"\"),\"Errore giorni dedicati al progetto\")","v":""}]
[null,null,null,null,null,null,null,null,null,null,null,null,{"$f":"IF(Tabella1[[#This Row],[Colonna11]]<=Tabella1[[#This Row],[Colonna10]],IF(K19<>\"\",((H19+I19+J19)/K19)*L19,\"\"),\"Errore giorni dedicati al progetto\")","v":""}]
[null,null,null,null,null,null,null,null,null,null,null,null,{"$f":"IF(Tabella1[[#This Row],[Colonna11]]<=Tabella1[[#This Row],[Colonna10]],IF(K20<>\"\",((H20+I20+J20)/K20)*L20,\"\"),\"Errore giorni dedicati al progetto\")","v":""}]
[null,null,null,null,null,null,null,null,null,null,null,null,{"$f":"IF(Tabella1[[#This Row],[Colonna11]]<=Tabella1[[#This Row],[Colonna10]],IF(K21<>\"\",((H21+I21+J21)/K21)*L21,\"\"),\"Errore giorni dedicati al progetto\")","v":""}]
[null,null,null,null,null,null,null,null,null,null,null,null,{"$f":"IF(Tabella1[[#This Row],[Colonna11]]<=Tabella1[[#This Row],[Colonna10]],IF(K22<>\"\",((H22+I22+J22)/K22)*L22,\"\"),\"Errore giorni dedicati al progetto\")","v":""}]
[null,null,null,null,null,null,null,null,null,null,null,null,{"$f":"IF(Tabella1[[#This Row],[Colonna11]]<=Tabella1[[#This Row],[Colonna10]],IF(K23<>\"\",((H23+I23+J23)/K23)*L23,\"\"),\"Errore giorni dedicati al progetto\")","v":""}]
[null,null,null,null,null,null,null,null,null,null,null,null,{"$f":"IF(Tabella1[[#This Row],[Colonna11]]<=Tabella1[[#This Row],[Colonna10]],IF(K24<>\"\",((H24+I24+J24)/K24)*L24,\"\"),\"Errore giorni dedicati al progetto\")","v":""}]
[null,null,null,null,null,null,null,null,null,null,null,null,{"$f":"IF(Tabella1[[#This Row],[Colonna11]]<=Tabella1[[#This Row],[Colonna10]],IF(K25<>\"\",((H25+I25+J25)/K25)*L25,\"\"),\"Errore giorni dedicati al progetto\")","v":""}]
[null,null,null,null,null,null,null,null,null,null,null,null,{"$f":"IF(Tabella1[[#This Row],[Colonna11]]<=Tabella1[[#This Row],[Colonna10]],IF(K26<>\"\",((H26+I26+J26)/K26)*L26,\"\"),\"Errore giorni dedicati al progetto\")","v":""}]
[null,null,null,null,null,null,null,null,null,null,null,null,{"$f":"IF(Tabella1[[#This Row],[Colonna11]]<=Tabella1[[#This Row],[Colonna10]],IF(K27<>\"\",((H27+I27+J27)/K27)*L27,\"\"),\"Errore giorni dedicati al progetto\")","v":""}]
[null,null,null,null,null,null,null,null,null,null,null,null,{"$f":"IF(Tabella1[[#This Row],[Colonna11]]<=Tabella1[[#This Row],[Colonna10]],IF(K28<>\"\",((H28+I28+J28)/K28)*L28,\"\"),\"Errore giorni dedicati al progetto\")","v":""}]
[null,null,null,null,null,null,null,null,null,null,null,null,{"$f":"IF(Tabella1[[#This Row],[Colonna11]]<=Tabella1[[#This Row],[Colonna10]],IF(K29<>\"\",((H29+I29+J29)/K29)*L29,\"\"),\"Errore giorni dedicati al progetto\")","v":""}]
[null,null,null,null,null,null,null,null,null,null,null,null,{"$f":"IF(Tabella1[[#This Row],[Colonna11]]<=Tabella1[[#This Row],[Colonna10]],IF(K30<>\"\",((H30+I30+J30)/K30)*L30,\"\"),\"Errore giorni dedicati al progetto\")","v":""}]
[null,null,null,null,null,null,null,null,null,null,null,"TOT",{"$f":"SUM(M8:M30)","v":0}]

{"sheet":"Foglio2","index":7,"n_rows":13,"n_cols":4,"rows_kept":13,"cut":false,"hidden":true,"merged":[]}
[]
[null,"Gennaio",null,2021]
[null,"Febbraio",null,2022]
[null,"Marzo"]
[null,"Aprile"]
[null,"Maggio"]
[null,"Giugno"]
[null,"Luglio"]
[null,"Agosto"]
[null,"Settembre"]
[null,"Ottobre"]
[null,"Novembre"]
[null,"Dicembre"]